[Event "WSTCC-65 2024"]
[Site "Krakow"]
[Date "2024.07.02"]
[Round "1.6"]
[White "Bykhovsky, Avigdor"]
[Black "Mortensen, John"]
[Result "1-0"]
[ECO "D37"]
[WhiteElo "2335"]
[BlackElo "2048"]
[Annotator "TA"]
[PlyCount "59"]
[EventDate "2024.07.01"]
[EventType "team-tourn"]
[EventCountry "POL"]
[SourceTitle "playchess.com"]
[Source "ChessBase"]
[SourceQuality "1"]
[TimeControl "40/5400+30:1800+30"]

{[%evp 16,59,31,31,44,33,50,33,36,33,24,22,55,66,60,52,31,40,47,43,62,53,69,68,64,52,56,60,62,65,82,54,57,49,64,37,51,65,101,94,761,757,757,750,1013,996]} 1. d4 {[%emt 0:00:05]} d5 {[%emt 0:00:16]} 2. c4 {[%emt 0:00:18]} e6 {[%emt 0:00:13]} 3. Nf3 {[%emt 0:00:25]} Nf6 {[%emt 0:00:15]} 4. Nc3 {[%emt 0:00:13]} Be7 {[%emt 0:00:25]} 5. Bf4 {[%emt 0:00:31]} O-O {[%emt 0:00:51]} 6. e3 {[%emt 0:00:14]} c5 {[%emt 0:02:10]} 7. dxc5 {[%emt 0:01:19]} Bxc5 {[%emt 0:03:16]} 8. a3 {[%emt 0:04:27]} Nc6 {[%emt 0:02:07]} 9. Be2 {[%emt 0:01:46]} Re8 {[%emt 0:04:23]} 10. O-O {[%emt 0:08:27]} h6 {[%emt 0:03:50]} 11. cxd5 {[%emt 0:04:28]} Nxd5 {[%emt 0:01:24] White is slightly better.} 12. Nxd5 {[%emt 0:01:23]} exd5 {[%emt 0:00:31]} 13. Rc1 {[%emt 0:06:21]} Bd6 {[%emt 0:00:37]} 14. Bxd6 {[%emt 0:05:08]} (14. Qxd5 Bxf4 15. Qxd8 Nxd8 $15) 14... Qxd6 {[%emt 0:00:40]} 15. Rc2 {[%emt 0:03:16]} Bf5 {[%emt 0:03:16]} 16. Bd3 {[%emt 0:00:44]} Bxd3 {[%emt 0:02:32]} 17. Qxd3 {[%emt 0:00:01]} Rad8 {[%emt 0:00:22]} 18. Rd2 {[%emt 0:01:19]} Qe6 {[%emt 0:05:38]} 19. h3 {[%emt 0:05:07]} Re7 {[%emt 0:01:40]} 20. Rfd1 {[%emt 0:01:21]} Rc7 {[%emt 0:05:36]} 21. Nd4 {[%emt 0:06:05]} Nxd4 {[%emt 0:06:09]} 22. Qxd4 {[%emt 0:00:02]} b6 {[%emt 0:00:17]} 23. Qf4 {[%emt 0:06:46]} Rc5 {[%emt 0:01:51]} 24. Qf3 {[%emt 0:04:09]} Rd7 {[%emt 0:01:58]} 25. Kh2 {[%emt 0:03:28]} Qe5+ {[%emt 0:05:57]} 26. g3 {[%emt 0:01:08]} a5 {[%emt 0:04:06]} 27. b4 {[%emt 0:03:54]} Rb5 {[%emt 0:11:01][%mdl 8192]} (27... axb4 $16 28. axb4 Rb5) 28. Qe2 $18 {[%emt 0:01:50] White is clearly winning.} d4 {[%emt 0:00:08] [#]} 29. f4 $1 {[%emt 0:00:13]} (29. exd4 Qxe2 30. Rxe2 axb4 $11) (29. Rxd4 Rbd5 30. Qc4 Rxd4 31. Rxd4 Rxd4 32. Qc8+ (32. Qxd4 Qe6 $16) (32. exd4 Qf5 $16) 32... Kh7 33. exd4 Qxd4 34. Qf5+ Kg8 $11) 29... d3 {[%emt 0:05:19]} 30. Rxd3 {[%emt 0:01:37] Weighted Error Value: White=0.06 (flawless) /Black=0.16 (very precise) .  Loses game:     	---       	Black=1      Inaccurate:     	White=2     	Black=2      OK:         	White=7     	Black=3      Best:        	White=1     	---} ({Stronger than} 30. fxe5 dxe2 31. Rxd7 exd1=R (31... exd1=Q 32. Rxd1 axb4 33. Rd8+ Kh7 34. axb4 $11) 32. Rxd1 axb4 (32... Rxe5 33. bxa5 Rxa5 34. Rd8+ Kh7 35. Rd3 $11) 33. Rd8+ Kh7 34. axb4 Rxb4 $11) 1-0

[Event "WSTCC-65 2024"]
[Site "Krakow"]
[Date "2024.07.02"]
[Round "1.6"]
[White "Vatter, Hans-Joachim"]
[Black "Bhopal, Raj"]
[Result "1-0"]
[ECO "B01"]
[WhiteElo "2214"]
[BlackElo "1991"]
[Annotator "RC"]
[PlyCount "49"]
[EventDate "2024.07.01"]
[EventType "team-tourn"]
[EventCountry "POL"]
[SourceTitle "playchess.com"]
[Source "ChessBase"]
[SourceQuality "1"]
[TimeControl "40/5400+30:1800+30"]

1. e4 {[%emt 0:00:05]} d5 {[%emt 0:00:14]} 2. exd5 {[%emt 0:00:19]} Qxd5 {[%emt 0:00:10]} 3. Nc3 {[%emt 0:00:41]} Qd6 {[%emt 0:00:20]} 4. d4 {[%emt 0:00:31]} Nf6 {[%emt 0:00:13]} 5. Nf3 {[%emt 0:00:56]} a6 {[%emt 0:00:30]} 6. g3 {[%emt 0:02:17]} Bg4 {[%emt 0:04:22]} 7. h3 {[%emt 0:02:09]} Bh5 {[%emt 0:06:32]} 8. Bg2 {[%emt 0:33:33]} Nc6 {[%emt 0:05:32]} 9. Bf4 {[%emt 0:05:33]} Qb4 {[%emt 0:11:15]} 10. Bxc7 {[%emt 0:03:36]} Nd5 {[%emt 0:13:24]} 11. a3 {[%emt 0:19:00]} Nxc3 {[%emt 0:02:42]} 12. axb4 {[%emt 0:00:27]} Nxd1 {[%emt 0:00:10]} 13. b5 {[%emt 0:02:09]} Bxf3 {[%emt 0:18:12]} 14. Bxf3 {[%emt 0:02:35]} Nxd4 {[%emt 0:07:40]} 15. Bxb7 {[%emt 0:02:30]} Ra7 {[%emt 0:07:11]} 16. bxa6 {[%emt 0:00:43]} Kd7 {[%emt 0:06:20]} 17. Bb6 {[%emt 0:05:41]} Nxc2+ {[%emt 0:01:18]} 18. Kxd1 {[%emt 0:00:09]} Nxa1 {[%emt 0:00:23]} 19. Bxa7 {[%emt 0:00:20]} Kc7 {[%emt 0:02:53]} 20. b4 {[%emt 0:08:47]} e6 {[%emt 0:02:43]} 21. Kc1 {[%emt 0:00:49]} Be7 {[%emt 0:01:56]} 22. Kb1 {[%emt 0:01:22]} Bf6 {[%emt 0:01:31]} 23. Rc1+ {[%emt 0:00:13]} Kd7 {[%emt 0:01:21]} 24. Ka2 {[%emt 0:00:37]} h5 {[%emt 0:03:24]} 25. Be3 {[%emt 0:00:42]} 1-0

[Event "WSTCC-65 2024"]
[Site "Krakow"]
[Date "2024.07.02"]
[Round "1.6"]
[White "Soderberg, Per"]
[Black "Reem, Meir"]
[Result "1-0"]
[ECO "B07"]
[WhiteElo "2015"]
[BlackElo "1866"]
[Annotator "NA RC"]
[PlyCount "77"]
[EventDate "2024.07.01"]
[EventType "team-tourn"]
[EventCountry "POL"]
[SourceTitle "playchess.com"]
[Source "ChessBase"]
[SourceQuality "1"]
[TimeControl "40/5400+30:1800+30"]

1. e4 {[%emt 0:00:02]} d6 {[%emt 0:00:03]} 2. d4 {[%emt 0:00:20]} Nf6 {[%emt 0:00:10]} 3. Nc3 {[%emt 0:00:07]} c6 {[%emt 0:00:09]} 4. Nf3 {[%emt 0:04:12]} Qa5 {[%emt 0:00:33]} 5. Bd2 {[%emt 0:02:49]} Qc7 {[%emt 0:01:34]} 6. h3 {[%emt 0:01:17]} e5 {[%emt 0:00:20]} 7. Bd3 {[%emt 0:04:46]} Be7 {[%emt 0:01:03]} 8. O-O {[%emt 0:00:42]} O-O {[%emt 0:00:21]} 9. Re1 {[%emt 0:05:00]} b5 {[%emt 0:03:29]} 10. a4 {[%emt 0:04:43]} b4 {[%emt 0:03:00]} 11. Ne2 {[%emt 0:01:38]} a5 {[%emt 0:00:45]} 12. c3 {[%emt 0:03:08]} c5 {[%emt 0:07:04]} 13. Ng3 {[%emt 0:06:45]} g6 {[%emt 0:17:32]} 14. Qe2 {[%emt 0:04:24]} Re8 {[%emt 0:06:32]} 15. dxe5 {[%emt 0:05:41]} dxe5 {[%emt 0:00:55]} 16. Bc4 {[%emt 0:00:23]} Ba6 {[%emt 0:02:56]} 17. b3 {[%emt 0:04:50]} Bxc4 {[%emt 0:02:52]} 18. Qxc4 {[%emt 0:00:08]} Ra7 {[%emt 0:06:28]} 19. Rac1 {[%emt 0:01:07]} Bd6 {[%emt 0:06:29]} 20. Be3 {[%emt 0:03:57]} Rb7 {[%emt 0:02:48]} 21. Red1 {[%emt 0:00:48]} Qe7 {[%emt 0:05:00]} 22. Bg5 {[%emt 0:06:00]} Qe6 {[%emt 0:01:58]} 23. Nd2 {[%emt 0:02:25]} bxc3 {[%emt 0:05:30]} 24. Qxc3 {[%emt 0:01:32]} Nc6 {[%emt 0:02:30]} 25. Nc4 {[%emt 0:00:36]} Bc7 {[%emt 0:02:22]} 26. Bxf6 {[%emt 0:06:15]} Qxf6 {[%emt 0:00:14]} 27. Ne3 {[%emt 0:00:07]} Nd4 {[%emt 0:01:46]} 28. Nd5 {[%emt 0:00:36]} Qd8 {[%emt 0:09:41]} 29. Qxc5 {[%emt 0:04:53]} Bd6 {[%emt 0:00:55]} 30. Qc4 Rxb3 {[%emt 0:01:07]} 31. Rxd4 {[%emt 0:04:45]} Rxg3 {[%emt 0:00:08]} 32. Rdd1 {[%emt 0:05:25]} Ra3 {[%emt 0:00:35]} 33. Nc3 {[%emt 0:01:06]} Rxc3 {[%emt 0:07:37]} 34. Rxc3 {[%emt 0:00:43]} Qe7 {[%emt 0:00:12]} 35. Rcd3 {[%emt 0:01:28]} Bb4 {[%emt 0:00:13]} 36. Rd7 {[%emt 0:02:41]} Qf6 {[%emt 0:00:11]} 37. R1d3 {[%emt 0:01:30]} Re7 {[%emt 0:01:32]} 38. Rf3 {[%emt 0:01:29]} Qg5 {[%emt 0:00:13]} 39. Rxf7 {[%emt 0:00:43]} 1-0

[Event "WSTCC-65 2024"]
[Site "Krakow"]
[Date "2024.07.02"]
[Round "1.7"]
[White "Cordes, Steffen"]
[Black "Maryasin, Boris"]
[Result "0-1"]
[ECO "B47"]
[WhiteElo "1989"]
[BlackElo "2209"]
[Annotator "TA"]
[PlyCount "94"]
[EventDate "2024.07.01"]
[EventType "team-tourn"]
[EventCountry "POL"]
[SourceTitle "playchess.com"]
[Source "ChessBase"]
[SourceQuality "1"]
[TimeControl "40/5400+30:1800+30"]

{[%evp 12,94,30,15,43,44,63,33,46,63,70,77,98,79,85,9,18,11,19,0,0,0,0,-18,-2,-29,0,-39,-26,-34,-20,-85,-79,-74,-66,-72,-79,-77,-52,-137,-130,-126,-104,-107,-102,-83,-80,-135,-114,-145,-164,-162,-179,-228,-235,-272,-73,-50,-62,-179,-137,-318,-317,-578,-571,-29977,-29978,-29990,-29979,-29980,-4134,-29981,-29982,-29982,-29983,-29983,-29984,-29991,-29992,-29992,-29983,-29983,-29984,-29987,-29988]} 1. e4 {[%emt 0:00:03]} c5 {[%emt 0:01:59]} 2. Nc3 {[%emt 0:00:10]} Nc6 {[%emt 0:00:10]} 3. Nf3 {[%emt 0:00:07]} e6 {[%emt 0:00:27]} 4. d4 {[%emt 0:00:14]} cxd4 {[%emt 0:00:08]} 5. Nxd4 {[%emt 0:00:04]} Qc7 {[%emt 0:00:16]} 6. Be2 {[%emt 0:02:03]} Nf6 {[%emt 0:00:39]} 7. O-O {[%emt 0:05:18]} Nxd4 {[%emt 0:03:00]} 8. Qxd4 {[%emt 0:00:28] Und jetzt Nb5 wäre schön.} Bc5 $1 {[%emt 0:00:16]} 9. Qd3 {[%emt 0:02:07]} a6 {[%emt 0:00:48] Es drohte Nb5. Weiß steht etwas besser.} 10. Be3 {[%emt 0:00:43]} d6 {[%emt 0:04:45]} 11. Bxc5 {[%emt 0:03:48]} Qxc5 {[%emt 0:00:28]} 12. Rad1 {[%emt 0:00:34]} Ke7 {[%emt 0:00:14]} 13. Qd4 {[%emt 0:01:00]} (13. Qg3 $16) 13... Qxd4 $11 {[%emt 0:01:54]} 14. Rxd4 {[%emt 0:01:28]} e5 $1 {[%emt 0:00:22]} 15. Rd2 {[%emt 0:06:51]} Be6 {[%emt 0:00:59]} 16. Rfd1 {[%emt 0:03:08]} Rhd8 {[%emt 0:03:20]} 17. g3 {[%emt 0:05:09]} b5 {[%emt 0:04:25]} 18. a3 {[%emt 0:03:43]} g5 {[%emt 0:00:13]} 19. Bf3 {[%emt 0:01:33]} Rac8 {[%emt 0:00:56]} 20. Re1 {[%emt 0:09:57]} Rc4 {[%emt 0:06:42]} 21. Nd5+ {[%emt 0:12:29]} (21. Nd1 $11) 21... Bxd5 $17 {[%emt 0:11:54]} 22. exd5 {[%emt 0:00:33]} g4 {[%emt 0:00:19]} 23. Bg2 {[%emt 0:01:41]} h5 {[%emt 0:02:05]} 24. c3 {[%emt 0:04:14]} h4 {[%emt 0:02:36]} 25. f4 {[%emt 0:02:41]} (25. gxh4 $15 Rh8 26. Rd4) 25... gxf3 {[%emt 0:00:25]} 26. Bxf3 {[%emt 0:00:08]} hxg3 {[%emt 0:00:19]} 27. hxg3 {[%emt 0:00:07]} Rg8 {[%emt 0:00:48]} 28. Kg2 {[%emt 0:00:31]} Rg5 {[%emt 0:03:12]} 29. Re3 {[%emt 0:03:54]} ({Besser ist} 29. Rd4) 29... Kf8 {[%emt 0:04:20] Schwarz steht aktiver.} 30. b3 {[%emt 0:05:03]} Rc5 {[%emt 0:00:36]} 31. c4 {[%emt 0:04:01]} bxc4 {[%emt 0:00:54]} 32. bxc4 {[%emt 0:00:09]} (32. b4 $142 Rc8 33. Rc2) 32... Rxc4 $19 {[%emt 0:00:25]} 33. Rb3 {[%emt 0:01:44]} Ne4 $2 {[%emt 0:06:25] [#]} (33... a5 $19 {und Schwarz behält klar die Oberhand. ...e4 ist eine echte Drohung.} 34. Be2 Rc1) 34. Bxe4 $17 {[%emt 0:00:28]} Rxe4 {[%emt 0:00:01][%mdl 4096] Endspiel. KRR-KRR} 35. Rdd3 {[%emt 0:04:32]} (35. Rf2 $15) 35... Ra4 {[%emt 0:01:18]} 36. Rb6 $2 {[%emt 0:01:35] Der Zug kostet die Partie für Weiß.} (36. Rf3 $17) 36... e4 $19 {[%emt 0:00:22]} 37. Rd1 {[%emt 0:01:33] [#]} (37. Rdb3 Rxd5 38. Rc6) 37... Rxa3 {[%emt 0:00:25]} 38. Rxd6 {[%emt 0:00:16]} Rgxg3+ {[%emt 0:00:36]} 39. Kf2 {[%emt 0:00:09]} Raf3+ {[%emt 0:00:19]} 40. Ke2 {[%emt 0:00:17]} Rg2+ {[%emt 0:00:32]} 41. Ke1 {[%emt 0:30:07]} e3 {[%emt 0:32:44] Schwarz setzt Matt.} 42. Rd3 {[%emt 0:01:35]} Rh3 {[%emt 0:00:16][%cal Rh3h1]} 43. Rf6 {[%emt 0:00:35]} Ra2 {[%emt 0:02:03]} ({Nicht} 43... Rf2 44. Rxe3 Rxf6 45. Rxh3 $15) 44. Rf1 {[%emt 0:00:51]} Rhh2 {[%emt 0:03:33]} 45. Rf3 {[%emt 0:03:38]} Ra1+ {[%emt 0:00:46]} 46. Rd1 {[%emt 0:00:10]} Rh1+ {[%emt 0:00:10]} 47. Rf1 {[%emt 0:00:07]} Rxf1+ {Gewichteter Fehlerwert: Weiß=0.51/Schwarz=0.15 (sehr präzise) .  Verlustzug:     	Weiß=1     	---        Gewinn verpasst:   	---       	Schwarz=1     Fehler:       	Weiß=7     	---        Ungenau:       	Weiß=4     	---        OK:         	Weiß=4     	Schwarz=10    Bester:       	---       	Schwarz=5     Stark:        	---       	Schwarz=2} 0-1

[Event "WSTCC-65 2024"]
[Site "Krakow"]
[Date "2024.07.02"]
[Round "1.7"]
[White "Scrimgour, Alan"]
[Black "Kiefer, Gerhard"]
[Result "0-1"]
[ECO "B22"]
[WhiteElo "1979"]
[BlackElo "2210"]
[Annotator "TA"]
[PlyCount "86"]
[EventDate "2024.07.01"]
[EventType "team-tourn"]
[EventCountry "POL"]
[SourceTitle "playchess.com"]
[Source "ChessBase"]
[SourceQuality "1"]
[TimeControl "40/5400+30:1800+30"]

{[%evp 16,86,26,28,73,78,132,66,50,59,59,52,60,18,20,20,103,21,18,49,42,47,35,39,42,25,50,42,43,49,80,77,192,186,374,89,83,83,239,231,233,198,163,0,0,-25,0,-14,-18,-8,-14,-435,-416,-443,-376,-388,-458,-492,-391,-678,-659,-671,-562,-747,-712,-5072,-5072,-4888,-4794,-2752,-1751,-1292,-1245]} 1. e4 {[%emt 0:00:03]} c5 {[%emt 0:00:08]} 2. c3 {[%emt 0:00:09]} Nf6 {[%emt 0:00:17]} 3. e5 {[%emt 0:00:06]} Nd5 {[%emt 0:00:07]} 4. d4 {[%emt 0:00:06]} cxd4 {[%emt 0:00:09]} 5. cxd4 {[%emt 0:00:06]} d6 {[%emt 0:00:21]} 6. Nf3 {[%emt 0:00:14]} e6 {[%emt 0:01:14]} 7. Bc4 {[%emt 0:01:05]} Nb6 {[%emt 0:02:31]} 8. Bd3 {[%emt 0:03:27]} Nc6 {[%emt 0:01:10]} 9. O-O {[%emt 0:03:58]} Qc7 {[%emt 0:02:52][%cal Rd6e5]} 10. Nc3 {[%emt 0:12:19]} dxe5 {[%emt 0:03:02]} (10... Be7 $142) 11. dxe5 {[%emt 0:05:28]} (11. Nxe5 $16 {Schwarz muss nun Bf4 beachten.} Nxe5 12. Bf4 (12. dxe5 Bd7 $16)) 11... Bd7 $14 {[%emt 0:00:59] Weiß steht etwas besser.} 12. Bf4 {[%emt 0:04:40]} Nb4 {[%emt 0:04:53]} 13. Nb5 {[%emt 0:07:54]} Qb8 {[%emt 0:00:18]} 14. Re1 {[%emt 0:14:33]} N6d5 {[%emt 0:01:32][%cal Ob4d3] Und ...Nxd3! würde nun gewinnen.} 15. Bg3 {[%emt 0:02:47]} h6 {[%emt 0:06:25]} (15... Nxd3 $11 16. Qxd3 Qd8) 16. a3 {[%emt 0:08:19]} (16. Bc4 $16) 16... Nxd3 $11 {[%emt 0:00:36]} 17. Qxd3 {[%emt 0:00:10]} a6 {[%emt 0:00:28]} 18. Nd6+ {[%emt 0:01:29]} Bxd6 {[%emt 0:00:08]} 19. exd6 {[%emt 0:00:16]} O-O {[%emt 0:00:13] Schwarz hat schwache schwarze Felder} 20. Ne5 {[%emt 0:01:58]} Qd8 {[%emt 0:03:57]} 21. Rad1 $36 {[%emt 0:03:35][%mdl 2048] Weiss hat Druck.} Rc8 {[%emt 0:01:16]} 22. Qe4 {[%emt 0:02:17]} f5 {[%emt 0:11:52]} 23. Qf3 {[%emt 0:05:40][%cal Og3h4]} f4 {[%emt 0:05:44] [#]} (23... Ba4 $16) 24. Bh4 $1 $18 {[%emt 0:02:21]} g5 $2 {[%emt 0:00:09]} (24... Qe8) 25. Rxd5 $2 {[%emt 0:04:52]} (25. Qh5 $18 {ist der präzise Gewinnweg. Und jetzt Qg6+ wäre schön.} Rf6 26. Bxg5) 25... exd5 $16 {[%emt 0:00:37]} 26. Qxd5+ {[%emt 0:00:53]} Kh7 $2 {[%emt 0:05:15] [#]} (26... Kh8 $16) 27. f3 $1 $18 {[%emt 0:01:51] Nxd7 wäre nun fies.} Qb6+ {[%emt 0:05:36]} 28. Bf2 {[%emt 0:00:17]} Qb5 {[%emt 0:00:04]} 29. Qxb5 {[%emt 0:04:52]} ({Günstiger ist} 29. Qd4 $18) 29... Bxb5 $11 {[%emt 0:00:09]} 30. Bb6 {[%emt 0:00:18] Lässt Rfd8 nicht zu} Rfe8 {[%emt 0:04:34][%cal Oe8e5]} 31. h4 {[%emt 0:02:57]} Re6 {[%emt 0:06:12]} 32. Bc7 {[%emt 0:04:01]} (32. d7 Bxd7 33. Ba5 Be8 34. hxg5 hxg5 $17) 32... Rce8 {[%emt 0:01:55]} 33. a4 $2 {[%emt 0:01:02][%mdl 8192]} Rxe5 {[%emt 0:08:24]} 34. Rxe5 {[%emt 0:00:17]} Rxe5 {[%emt 0:00:06]} 35. axb5 $19 {[%emt 0:00:07][%mdl 4096] Endspiel. KR-KB} Rd5 {[%emt 0:00:05]} (35... gxh4 $2 {verliert.} 36. d7 Rd5 37. d8=Q $18 (37. d8=B Rxb5 38. Bf6 h3 $11)) 36. bxa6 {[%emt 0:00:59]} bxa6 {[%emt 0:00:05]} 37. hxg5 $2 {[%emt 0:00:56]} (37. Kf2) 37... hxg5 {[%emt 0:00:10] Schwarz steht klar auf Gewinn.} 38. Kh2 {[%emt 0:00:23]} Kg6 {[%emt 0:00:18]} 39. g3 {[%emt 0:01:18]} Kf5 {[%emt 0:05:06]} 40. gxf4 {[%emt 0:01:23]} gxf4 {[%emt 0:00:16]} 41. Kh3 {[%emt 0:02:24]} Rd2 {[%emt 0:13:54]} 42. b4 {[%emt 0:01:08]} Rd4 {[%emt 0:00:52]} 43. Kg2 {[%emt 0:04:53]} Ke6 {[%emt 0:00:19] Gewichteter Fehlerwert: Weiß=0.76/Schwarz=0.52.  Verlustzug:     	Weiß=1     	---        Gewinn verpasst:   	Weiß=2     	---        Fehler:       	Weiß=3     	Schwarz=5     Ungenau:       	Weiß=2     	Schwarz=1     OK:         	Weiß=8     	Schwarz=8     Bester:       	Weiß=2     	Schwarz=5     Stark:        	Weiß=1     	---} (43... Rxb4 $2 {ist das falsche Schlagen.} 44. d7 Rd4 45. d8=Q $18 (45. d8=R Rc4 $18)) 0-1

[Event "WSTCC-65 2024"]
[Site "Krakow"]
[Date "2024.07.02"]
[Round "1.7"]
[White "Gorjaltsan, Eduard"]
[Black "Hammar, Bengt"]
[Result "0-1"]
[ECO "E70"]
[WhiteElo "1884"]
[BlackElo "2127"]
[Annotator "NA RC"]
[PlyCount "73"]
[EventDate "2024.07.01"]
[EventType "team-tourn"]
[EventCountry "POL"]
[SourceTitle "playchess.com"]
[Source "ChessBase"]
[SourceQuality "1"]
[TimeControl "40/5400+30:1800+30"]

1. d4 {[%emt 0:00:06]} Nf6 {[%emt 0:00:39]} 2. c4 {[%emt 0:00:10]} g6 {[%emt 0:00:33]} 3. Nc3 {[%emt 0:00:13]} Bg7 {[%emt 0:00:56]} 4. e4 {[%emt 0:00:18]} d6 {[%emt 0:00:25]} 5. Bd3 {[%emt 0:00:49]} O-O {[%emt 0:02:05]} 6. Nge2 {[%emt 0:01:15]} c5 {[%emt 0:02:18]} 7. d5 {[%emt 0:00:53]} e6 {[%emt 0:00:49]} 8. O-O {[%emt 0:00:51]} exd5 {[%emt 0:00:44]} 9. exd5 {[%emt 0:01:06]} Nbd7 {[%emt 0:02:00]} 10. f4 {[%emt 0:06:29]} a6 {[%emt 0:02:12]} 11. Ng3 {[%emt 0:01:34]} Rb8 {[%emt 0:02:18]} 12. a4 {[%emt 0:03:06]} Ne8 {[%emt 0:05:31]} 13. Nce4 {[%emt 0:04:38]} Ndf6 {[%emt 0:06:06]} 14. f5 {[%emt 0:02:58]} Nxe4 {[%emt 0:02:04]} 15. Bxe4 {[%emt 0:00:38]} b5 {[%emt 0:02:43]} 16. fxg6 {[%emt 0:09:28]} hxg6 {[%emt 0:00:36]} 17. cxb5 {[%emt 0:01:06]} axb5 {[%emt 0:00:18]} 18. axb5 {[%emt 0:05:55]} Rxb5 {[%emt 0:01:01]} 19. Qc2 {[%emt 0:00:03]} Rb4 {[%emt 0:02:16]} 20. Ra4 {[%emt 0:06:08]} Rxa4 {[%emt 0:02:42]} 21. Qxa4 {[%emt 0:00:08]} Qb6 {[%emt 0:01:57]} 22. Qc2 {[%emt 0:04:21]} Ba6 {[%emt 0:01:59]} 23. Re1 {[%emt 0:03:08]} Nf6 {[%emt 0:00:44]} 24. Bf3 {[%emt 0:00:28]} Nd7 {[%emt 0:00:35]} 25. Be2 {[%emt 0:06:45]} Re8 {[%emt 0:03:47]} 26. Kf1 {[%emt 0:01:44]} Ne5 {[%emt 0:03:06]} 27. b3 {[%emt 0:03:34]} Ng4 {[%emt 0:06:30]} 28. h3 {[%emt 0:00:47]} Ne3+ {[%emt 0:00:31]} 29. Bxe3 {[%emt 0:00:19]} Rxe3 {[%emt 0:00:09]} 30. Bxa6 {[%emt 0:02:26]} Qxa6+ {[%emt 0:00:02]} 31. Ne2 {[%emt 0:00:27]} Rc3 {[%emt 0:04:03]} 32. Qe4 {[%emt 0:00:41]} Bd4 {[%emt 0:01:41]} 33. Rb1 {[%emt 0:02:29]} Re3 {[%emt 0:01:58]} 34. Qc2 {[%emt 0:00:40]} Re5 {[%emt 0:00:32]} 35. Qc4 {[%emt 0:01:03]} Qa2 {[%emt 0:01:21]} 36. Rd1 {[%emt 0:00:32]} Rf5+ 37. Nf4 0-1

[Event "WSTCC-65 2024"]
[Site "Krakow"]
[Date "2024.07.02"]
[Round "1.8"]
[White "Lederman, Leon"]
[Black "Oehlerich, Per"]
[Result "1-0"]
[ECO "B17"]
[WhiteElo "2198"]
[BlackElo "1959"]
[Annotator "RC"]
[PlyCount "53"]
[EventDate "2024.07.01"]
[EventType "team-tourn"]
[EventCountry "POL"]
[SourceTitle "playchess.com"]
[Source "ChessBase"]
[SourceQuality "1"]
[TimeControl "40/5400+30:1800+30"]

1. e4 {[%emt 0:00:05]} c6 {[%emt 0:00:41]} 2. d4 {[%emt 0:00:06]} d5 {[%emt 0:00:06]} 3. Nc3 {[%emt 0:00:05]} dxe4 {[%emt 0:00:57]} 4. Nxe4 {[%emt 0:00:13]} Nd7 {[%emt 0:00:55]} 5. Nf3 {[%emt 0:00:28]} Ngf6 {[%emt 0:00:21]} 6. Nxf6+ {[%emt 0:00:15]} Nxf6 {[%emt 0:00:18]} 7. Bc4 {[%emt 0:00:07]} e6 {[%emt 0:02:51]} 8. O-O {[%emt 0:00:20]} Be7 {[%emt 0:01:23]} 9. Bb3 {[%emt 0:02:43]} O-O {[%emt 0:04:08]} 10. Qe2 {[%emt 0:00:47]} Re8 {[%emt 0:03:43]} 11. Bg5 {[%emt 0:02:50]} Qc7 {[%emt 0:03:41]} 12. c4 {[%emt 0:01:18]} Bd7 {[%emt 0:09:08]} 13. Rad1 {[%emt 0:01:57]} a5 {[%emt 0:02:54]} 14. Ne5 {[%emt 0:01:00]} Nd5 {[%emt 0:17:39]} 15. Nxf7 {[%emt 0:08:51]} Kxf7 {[%emt 0:12:34]} 16. Qh5+ {[%emt 0:00:33]} Kf8 {[%emt 0:02:30]} 17. cxd5 {[%emt 0:00:41]} Bxg5 {[%emt 0:03:59]} 18. dxe6 {[%emt 0:04:30]} Bxe6 {[%emt 0:02:24]} 19. Bxe6 {[%emt 0:00:22]} Rxe6 {[%emt 0:10:59]} 20. Qxg5 {[%emt 0:00:11]} Rae8 {[%emt 0:08:59]} 21. d5 {[%emt 0:02:22]} cxd5 {[%emt 0:00:42]} 22. Rxd5 {[%emt 0:00:24]} Qc4 {[%emt 0:01:36]} 23. Rdd1 {[%emt 0:06:51]} Qxa2 {[%emt 0:00:41]} 24. Rd7 {[%emt 0:04:32]} Qxb2 {[%emt 0:01:55]} 25. Qf5+ {[%emt 0:00:29]} Kg8 {[%emt 0:02:57]} 26. Qf7+ {[%emt 0:00:09]} Kh8 {[%emt 0:00:04]} 27. Qxe6 {[%emt 0:00:07]} 1-0